fUST/lending_fUST_20240322
["ID","MTS","AMOUNT","RATE_DAILY","PERIOD"]
[320042872,1711111842865,-593.17,0.00027397,2]
[320042873,1711111842874,-946.09,0.00027397,2]
[320042874,1711111842883,-500.0,0.00027397,2]
[320042875,1711111842892,-680.450779,0.00027397,2]
[320042876,1711111842901,-680.450779,0.00027397,2]
[320042877,1711111842910,-680.450779,0.00027397,2]
[320042878,1711111842919,-680.450779,0.00027397,2]
[320042879,1711111842928,-2447.47,0.00027397,2]
[320042880,1711111842937,-500.0,0.00027397,2]
[320042881,1711111842946,-500.0,0.00027397,2]
[320042882,1711111842955,-151.0,0.00027397,2]
[320042883,1711111842965,-151.0,0.00027397,2]
[320042884,1711111842974,-151.0,0.00027397,2]
[320042885,1711111842983,-151.0,0.00027397,2]
[320042886,1711111842992,-991.88145005,0.00027397,2]
[320042887,1711111843001,-991.88145005,0.00027397,2]
[320042888,1711111843010,-991.88145005,0.00027397,2]
[320042889,1711111843020,-991.88145005,0.00027397,2]
[320042890,1711111843029,-991.88145005,0.00027397,2]
[320042891,1711111843038,-991.88145005,0.00027397,2]
[320042892,1711111843047,-991.88145005,0.00027397,2]
[320042893,1711111843056,-991.88145005,0.00027397,2]
[320042894,1711111843065,-991.88145005,0.00027397,2]
[320042895,1711111843075,-991.88145005,0.00027397,2]
[320042896,1711111843084,-991.88145005,0.00027397,2]
[320042897,1711111843093,-991.88145005,0.00027397,2]
[320042898,1711111843102,-991.88145005,0.00027397,2]
[320042899,1711111843111,-991.88145005,0.00027397,2]
[320042900,1711111843120,-991.88145005,0.00027397,2]
[320042901,1711111843129,-991.88145005,0.00027397,2]
[320042902,1711111843139,-991.88145005,0.00027397,2]
[320042903,1711111843148,-991.88145005,0.00027397,2]
[320042904,1711111843157,-991.88145005,0.00027397,2]
[320042905,1711111843166,-991.88145005,0.00027397,2]
[320042906,1711111843175,-991.88145005,0.00027397,2]
[320042907,1711111843184,-991.88145005,0.00027397,2]
[320042908,1711111843193,-991.88145005,0.00027397,2]
[320042909,1711111843203,-500.0,0.00027397,2]
[320042910,1711111843212,-991.88145005,0.00027397,2]
[320042911,1711111843222,-991.88145005,0.00027397,2]
[320042912,1711111843232,-991.88145005,0.00027397,2]
[320042913,1711111843241,-991.88145005,0.00027397,2]
[320042914,1711111843251,-991.88145005,0.00027397,2]
[320042915,1711111843260,-991.88145005,0.00027397,2]
[320042916,1711111843269,-991.88145005,0.00027397,2]
[320042917,1711111843278,-991.88145005,0.00027397,2]
[320042918,1711111843287,-991.88145005,0.00027397,2]
[320042919,1711111843296,-991.88145005,0.00027397,2]
[320042920,1711111843305,-991.88145005,0.00027397,2]
[320042921,1711111843314,-991.88145005,0.00027397,2]
[320042922,1711111843323,-991.88145005,0.00027397,2]
[320042923,1711111843332,-991.88145005,0.00027397,2]
[320042924,1711111843341,-991.88145005,0.00027397,2]
[320042925,1711111843350,-991.88145005,0.00027397,2]
[320042926,1711111843359,-991.88145005,0.00027397,2]
[320042927,1711111843369,-991.88145005,0.00027397,2]
[320042928,1711111843378,-991.88145005,0.00027397,2]
[320042929,1711111843387,-991.88145005,0.00027397,2]
[320042930,1711111843396,-991.88145005,0.00027397,2]
[320042934,1711111843512,-991.88145005,0.00027397,2]
[320042935,1711111843522,-991.88145005,0.00027397,2]
[320042936,1711111843531,-991.88145005,0.00027397,2]
[320042937,1711111843540,-991.88145005,0.00027397,2]
[320042938,1711111843549,-991.88145005,0.00027397,2]
[320042939,1711111843558,-991.88145005,0.00027397,2]
[320042940,1711111843569,-991.88145005,0.00027397,2]
[320042942,1711111843579,-991.88145005,0.00027397,2]
[320042943,1711111843590,-991.88145005,0.00027397,2]
[320042944,1711111843600,-991.88145005,0.00027397,2]
[320042945,1711111843611,-500.0,0.00027397,2]
[320042946,1711111843622,-500.66893352,0.00027397,2]
[320042947,1711111843632,-151.0,0.00027397,2]
[320042948,1711111843643,-151.0,0.00027397,2]
[320042949,1711111843653,-151.0,0.00027397,2]
[320042950,1711111843663,-251.413671,0.00027397,2]
[320042951,1711111843675,-560.61,0.00027397,2]
[320042952,1711111843685,-2700.82,0.00027397,2]
[320042953,1711111843695,-575.64521674,0.00027397,2]
[320042954,1711111843706,-500.0,0.00027397,2]
[320042955,1711111843717,-500.0,0.00027397,2]
[320042956,1711111843727,-971.46036137,0.00027397,2]
[320042957,1711111843737,-971.46036137,0.00027397,2]
[320042958,1711111843747,-971.46036137,0.00027397,2]
[320042959,1711111843756,-971.46036137,0.00027397,2]
[320042960,1711111843766,-971.46036137,0.00027397,2]
[320042961,1711111843776,-971.46036137,0.00027397,2]
[320042962,1711111843786,-971.46036137,0.00027397,2]
[320042963,1711111843795,-971.46036137,0.00027397,2]
[320042964,1711111843804,-971.46036137,0.00027397,2]
[320042965,1711111843813,-971.46036137,0.00027397,2]
[320042966,1711111843823,-971.46036137,0.00027397,2]
[320042967,1711111843832,-971.46036137,0.00027397,2]
[320042968,1711111843841,-971.46036137,0.00027397,2]
[320042969,1711111843850,-971.46036137,0.00027397,2]
[320042970,1711111843860,-971.46036137,0.00027397,2]
[320042971,1711111843868,-971.46036137,0.00027397,2]
[320042972,1711111843877,-971.46036137,0.00027397,2]
[320042973,1711111843886,-971.46036137,0.00027397,2]
[320042974,1711111843896,-971.46036137,0.00027397,2]
[320042975,1711111843905,-971.46036137,0.00027397,2]
[320042976,1711111843914,-971.46036137,0.00027397,2]
[320042977,1711111843923,-971.46036137,0.00027397,2]
[320042978,1711111843931,-971.46036137,0.00027397,2]
[320042979,1711111843940,-971.46036137,0.00027397,2]
[320042980,1711111843949,-971.46036137,0.00027397,2]
[320042981,1711111843958,-971.46036137,0.00027397,2]
[320042982,1711111843968,-971.46036137,0.00027397,2]
[320042983,1711111843977,-971.46036137,0.00027397,2]
[320042984,1711111843986,-971.46036137,0.00027397,2]
[320042985,1711111843995,-971.46036137,0.00027397,2]
[320042986,1711111844003,-971.46036137,0.00027397,2]
[320042987,1711111844012,-971.46036137,0.00027397,2]
[320042988,1711111844021,-151.0,0.00027397,2]
[320042989,1711111844031,-151.0,0.00027397,2]
[320042990,1711111844040,-151.0,0.00027397,2]
[320042991,1711111844049,-151.0,0.00027397,2]
[320042992,1711111844058,-500.0,0.00027397,2]
[320042993,1711111844067,-2015.68,0.00027397,2]
[320042994,1711111844076,-151.0,0.00027397,2]
[320042995,1711111844085,-151.0,0.00027397,2]
[320042996,1711111844095,-151.0,0.00027397,2]
[320042997,1711111844104,-151.0,0.00027397,2]
[320042998,1711111844113,-2908.47,0.00027397,2]
[320042999,1711111844122,-12394.08,0.00027397,2]
[320043000,1711111844131,-500.0,0.00027397,2]
[320043001,1711111844140,-971.46036133,0.00027397,2]
[320043002,1711111844150,-971.46036133,0.00027397,2]
[320043003,1711111844159,-500.0,0.00027397,2]
[320043004,1711111844168,-500.0,0.00027397,2]
[320043005,1711111844177,-2967.04,0.00027397,2]
[320043006,1711111844186,-3908.24,0.00027397,2]
[320043007,1711111844195,-500.0,0.00027397,2]
[320043008,1711111844204,-500.0,0.00027397,2]
[320043009,1711111844214,-500.0,0.00027397,2]
[320043010,1711111844225,-153.555245,0.00027397,2]
[320043011,1711111844235,-153.555245,0.00027397,2]
[320043012,1711111844244,-153.555245,0.00027397,2]
[320043013,1711111844253,-153.555245,0.00027397,2]
[320043014,1711111844262,-500.0,0.00027397,2]
[320043015,1711111844270,-153.555245,0.00027397,2]
[320043016,1711111844279,-153.555245,0.00027397,2]
[320043017,1711111844289,-500.0,0.00027397,2]
[320043018,1711111844298,-153.555245,0.00027397,2]
[320043019,1711111844308,-500.0,0.00027397,2]
[320043020,1711111844318,-153.555245,0.00027397,2]
[320043021,1711111844327,-500.0,0.00027397,2]
[320043022,1711111844336,-500.0,0.00027397,2]
[320043023,1711111844346,-503.50924274,0.00027397,2]
[320043024,1711111844355,-500.0,0.00027397,2]
[320043025,1711111844364,-361.43918487,0.00027397,2]
[320043026,1711111844373,-500.0,0.00027397,2]
[320043027,1711111844381,-500.0,0.00027397,2]
[320043028,1711111844390,-500.0,0.00027397,2]
[320043029,1711111844399,-500.0,0.00027397,2]
[320043030,1711111844407,-500.0,0.00027397,2]
[320043031,1711111844416,-500.0,0.00027397,2]
[320043032,1711111844425,-295.03895098,0.00027397,2]
[320043033,1711111844433,-500.0,0.00027397,2]
[320043034,1711111844442,-7010.86,0.00027397,2]
[320043035,1711111844451,-3562.59,0.00027397,2]
[320043036,1711111844459,-500.0,0.00027397,2]
[320043037,1711111844469,-500.0,0.00027397,2]
[320043038,1711111844477,-5003.73,0.00027397,2]
[320043039,1711111844486,-798.72,0.00027397,2]
[320043040,1711111844496,-459.985919,0.00027397,2]
[320043041,1711111844507,-1138.64,0.00027397,2]
[320043042,1711111844516,-459.985919,0.00027397,2]
[320043043,1711111844525,-459.985919,0.00027397,2]
[320043044,1711111844534,-459.985919,0.00027397,2]
[320043045,1711111844544,-620.82,0.00027397,2]
[320043046,1711111844553,-459.985919,0.00027397,2]
[320043047,1711111844562,-459.985919,0.00027397,2]
[320043048,1711111844570,-500.0,0.00027397,2]
[320043049,1711111844580,-459.985919,0.00027397,2]
[320043050,1711111844589,-459.985919,0.00027397,2]
[320043051,1711111844599,-500.0,0.00027397,2]
[320043052,1711111844607,-674.43,0.00027397,2]
[320043053,1711111844616,-518.93219178,0.00027397,2]
[320043054,1711111844625,-500.0,0.00027397,2]
[320043055,1711111844634,-500.0,0.00027397,2]
[320043056,1711111844643,-500.0,0.00027397,2]
[320043057,1711111844652,-500.0,0.00027397,2]
[320043058,1711111844660,-28754.89,0.00027397,2]
[320043059,1711111844669,-500.0,0.00027397,2]
[320043060,1711111844678,-3444.81,0.00027397,2]
[320043061,1711111844686,-749.25,0.00027397,2]
[320043062,1711111844695,-500.0,0.00027397,2]
[320043063,1711111844704,-2023.32,0.00027397,2]
[320043064,1711111844713,-500.0,0.00027397,2]
[320043065,1711111844723,-500.0,0.00027397,2]
[320043066,1711111844733,-500.0,0.00027397,2]
[320043067,1711111844742,-1405.19,0.00027397,2]
[320043068,1711111844751,-763.48,0.00027397,2]
[320043069,1711111844760,-757.09,0.00027397,2]
[320043070,1711111844770,-7621.78,0.00027397,2]
[320043071,1711111844780,-500.0,0.00027397,2]
[320043072,1711111844790,-500.0,0.00027397,2]
[320043073,1711111844799,-589.28531856,0.00027397,2]
[320043074,1711111844808,-500.0,0.00027397,2]
[320043075,1711111844817,-500.0,0.00027397,2]
[320043076,1711111844826,-1000.0,0.00027397,2]
[320043077,1711111844835,-500.0,0.00027397,2]
[320043078,1711111844844,-2763.71,0.00027397,2]
[320043079,1711111844853,-500.0,0.00027397,2]
[320043080,1711111844862,-500.0,0.00027397,2]
[320043081,1711111844871,-500.0,0.00027397,2]
[320043082,1711111844881,-500.0,0.00027397,2]
[320043083,1711111844890,-500.0,0.00027397,2]
[320043084,1711111844899,-500.0,0.00027397,2]
[320043085,1711111844908,-535.08,0.00027397,2]
[320043086,1711111844917,-500.0,0.00027397,2]
[320043087,1711111844926,-763.4,0.00027397,2]
[320043088,1711111844935,-500.0,0.00027397,2]
[320043089,1711111844944,-500.0,0.00027397,2]
[320043090,1711111844954,-500.0,0.00027397,2]
[320043091,1711111844963,-500.0,0.00027397,2]
[320043092,1711111844973,-632.84,0.00027397,2]
[320043093,1711111844982,-500.0,0.00027397,2]
[320043094,1711111844991,-500.0,0.00027397,2]
[320043095,1711111845001,-500.0,0.00027397,2]
[320043096,1711111845010,-456.32210089,0.00027397,2]
[320043097,1711111845019,-3951.14,0.00027397,2]
[320043098,1711111845028,-500.0,0.00027397,2]
[320043099,1711111845036,-420.96008668,0.00027397,2]
[320043100,1711111845045,-525.06260111,0.00027397,2]
[320043101,1711111845054,-500.0,0.00027397,2]
[320043102,1711111845063,-1143.78,0.00027397,2]
[320043103,1711111845072,-500.0,0.00027397,2]
[320043104,1711111845082,-444.38699424,0.00027397,2]
[320043105,1711111845091,-500.0,0.00027397,2]
[320043106,1711111845101,-209.93799299,0.00027397,2]
[320043107,1711111845110,-500.0,0.00027397,2]
[320043108,1711111845119,-500.0,0.00027397,2]
[320043109,1711111845128,-500.0,0.00027397,2]
[320043110,1711111845138,-500.0,0.00027397,2]
[320043111,1711111845147,-500.0,0.00027397,2]
[320043112,1711111845156,-500.0,0.00027397,2]
[320043113,1711111845165,-500.0,0.00027397,2]
[320043114,1711111845174,-506.99424466,0.00027397,2]
[320043115,1711111845184,-500.0,0.00027397,2]
[320043116,1711111845193,-500.0,0.00027397,2]
[320043117,1711111845202,-1472.91,0.00027397,2]
[320043118,1711111845211,-500.0,0.00027397,2]
[320043119,1711111845220,-500.0,0.00027397,2]
[320043120,1711111845229,-500.0,0.00027397,2]
[320043121,1711111845238,-500.0,0.00027397,2]
[320043122,1711111845247,-39504.62,0.00027397,2]
[320043123,1711111845256,-500.0,0.00027397,2]
[320043124,1711111845265,-151.0,0.00027397,2]
[320043125,1711111845275,-500.0,0.00027397,2]
[320043126,1711111845284,-151.0,0.00027397,2]
[320043127,1711111845293,-151.0,0.00027397,2]
[320043128,1711111845302,-151.0,0.00027397,2]
[320043129,1711111845311,-500.0,0.00027397,2]
[320043130,1711111845320,-500.0,0.00027397,2]
[320043131,1711111845329,-151.0,0.00027397,2]
[320043132,1711111845339,-151.0,0.00027397,2]
[320043133,1711111845349,-151.0,0.00027397,2]
[320043134,1711111845446,-151.0,0.00027397,2]
[320043137,1711111845472,-500.0,0.00027397,2]
[320043139,1711111845482,-502.78712262,0.00027397,2]
[320043141,1711111845492,-501.1,0.00027397,2]
[320043143,1711111845501,-2677.19,0.00027397,2]
[320043145,1711111845513,-3007.49,0.00027397,2]
[320043147,1711111845522,-1327.74,0.00027397,2]
[320043148,1711111845531,-7203.91,0.00027397,2]
[320043150,1711111845541,-502.09528569,0.00027397,2]
[320043152,1711111845551,-3691.34,0.00027397,2]
[320043155,1711111845560,-500.0,0.00027397,2]
[320043157,1711111845569,-500.0,0.00027397,2]
[320043158,1711111845578,-37676.17,0.00027397,2]
[320043159,1711111845588,-569.34,0.00027397,2]
[320043160,1711111845598,-500.0,0.00027397,2]
[320043161,1711111845607,-746.78,0.00027397,2]
[320043162,1711111845616,-500.0,0.00027397,2]
[320043163,1711111845625,-500.0,0.00027397,2]
[320043164,1711111845634,-500.0,0.00027397,2]
[320043165,1711111845644,-500.0,0.00027397,2]
[320043166,1711111845653,-2250.74,0.00027397,2]
[320043167,1711111845662,-319.01882402,0.00027397,2]
[320043168,1711111845671,-500.0,0.00027397,2]
[320043169,1711111845681,-501.20079915,0.00027397,2]
[320043170,1711111845691,-500.0,0.00027397,2]
[320043171,1711111845699,-500.0,0.00027397,2]
[320043172,1711111845709,-500.0,0.00027397,2]
[320043173,1711111845718,-526.24,0.00027397,2]
[320043174,1711111845729,-3013.87,0.00027397,2]
[320043175,1711111845738,-477.23013056,0.00027397,2]
[320043176,1711111845747,-8462.19,0.00027397,2]
[320043177,1711111845756,-245.96034446,0.00027397,2]
[320043178,1711111845765,-500.0,0.00027397,2]
[320043179,1711111845774,-500.0,0.00027397,2]
[320043180,1711111845784,-500.0,0.00027397,2]
[320043181,1711111845793,-500.0,0.00027397,2]
[320043182,1711111845802,-500.0,0.00027397,2]
[320043183,1711111845811,-500.0,0.00027397,2]
[320043184,1711111845821,-501.18972539,0.00027397,2]
[320043185,1711111845830,-887.09,0.00027397,2]
[320043186,1711111845839,-500.0,0.00027397,2]
[320043188,1711111845848,-359.88654446,0.00027397,2]
[320043189,1711111845857,-500.0,0.00027397,2]
[320043191,1711111845866,-500.0,0.00027397,2]
[320043193,1711111845876,-943.95,0.00027397,2]
[320043195,1711111845885,-500.0,0.00027397,2]
[320043197,1711111845894,-500.0,0.00027397,2]
[320043199,1711111845903,-166.666666,0.00027397,2]
[320043200,1711111845912,-153.0,0.000274,2]
[320043202,1711111845921,-153.0,0.000274,2]
[320043203,1711111845930,-153.0,0.000274,2]
[320043205,1711111845939,-153.0,0.000274,2]
[320043207,1711111845948,-2000.0,0.000275,2]
[320043208,1711111845958,-171.90056342,0.00027665,3]
[320043209,1711111845967,-208.654261,0.00027671,2]
[320043210,1711111845976,-153.0,0.000277,2]
[320043211,1711111845985,-1000.0,0.00027716,2]
[320043212,1711111845994,-1000.0,0.00027734,2]
[320043213,1711111846003,-1000.0,0.0002778,2]
[320043214,1711111846013,-1000.0,0.000278,2]
[320043215,1711111846022,-1000.0,0.00027833,2]
[320043216,1711111846032,-1000.0,0.00027858,2]
[320043217,1711111846042,-1000.0,0.00027886,2]
[320043219,1711111846051,-1000.0,0.00027887,2]
[320043220,1711111846060,-1000.0,0.00027894,2]
[320043222,1711111846069,-400.0,0.000279,2]
[320043223,1711111846078,-1593.041834,0.000279,2]
[320043225,1711111846087,-1593.041834,0.000279,2]
[320043226,1711111846096,-151.0,0.000279,2]
[320043227,1711111846105,-151.0,0.000279,2]
[320043228,1711111846113,-1000.0,0.00027907,2]
[320043229,1711111846122,-183.96895006,0.00027908,2]
[320043230,1711111846131,-1000.0,0.00027922,2]
[320043231,1711111846140,-1000.0,0.00027923,2]
[320043232,1711111846149,-666.65,0.00027944,2]
[320043233,1711111846158,-666.65,0.00027944,2]
[320043234,1711111846167,-666.65,0.00027944,2]
[320043236,1711111846176,-666.65,0.00027944,2]
[320043238,1711111846185,-666.65,0.00027944,2]
[320043239,1711111846194,-666.65,0.00027944,2]
[320043241,1711111846204,-666.65,0.00027944,2]
[320043242,1711111846213,-666.65,0.00027944,2]
[320043243,1711111846223,-666.69143041,0.00027944,2]
[320043244,1711111846231,-1000.0,0.00027944,2]
[320043245,1711111846240,-500.0,0.00027944,2]
[320043246,1711111846250,-500.0,0.00027944,2]
[320043247,1711111846259,-500.0,0.00027944,2]
[320043248,1711111846268,-500.0,0.00027944,2]
[320043249,1711111846278,-500.0,0.00027944,2]
[320043250,1711111846288,-500.0,0.00027944,2]
[320043251,1711111846297,-409.25842123,0.00027944,2]
[320043252,1711111846306,-2501.026139,0.00027944,2]
[320043253,1711111846315,-2501.026139,0.00027944,2]
[320043254,1711111846324,-1348.64,0.00027944,2]
[320043255,1711111846333,-1348.64,0.00027944,2]
[320043256,1711111846342,-1348.64,0.00027944,2]
[320043257,1711111846351,-1348.64,0.00027944,2]
[320043258,1711111846361,-1348.64,0.00027944,2]
[320043259,1711111846370,-1348.64,0.00027944,2]
[320043260,1711111846378,-1348.64,0.00027944,2]
[320043261,1711111846387,-1348.64,0.00027944,2]
[320043262,1711111846395,-1348.65466831,0.00027944,2]
[320043263,1711111846403,-500.0,0.00027945,2]
[320043264,1711111846412,-500.0,0.00027945,2]
[320043265,1711111846421,-500.0,0.00027945,2]
[320043266,1711111846430,-500.0,0.00027945,2]
[320043267,1711111846438,-500.0,0.00027945,2]
[320043268,1711111846447,-500.0,0.00027945,2]
[320043269,1711111846456,-502.64008218,0.00027945,2]
[320043270,1711111846464,-500.0,0.00027945,2]
[320043271,1711111846475,-500.0,0.00027945,2]
[320043272,1711111846484,-500.0,0.00027945,2]
[320043273,1711111846492,-220.61834335,0.00027945,2]
[320043274,1711111846501,-500.0,0.00027945,2]
[320043275,1711111846513,-500.0,0.00027945,2]
[320043276,1711111846522,-322.84606959,0.00027945,2]
[320043277,1711111846530,-500.0,0.00027945,2]
[320043278,1711111846540,-349.50972731,0.00027945,2]
[320043279,1711111846549,-500.0,0.00027945,2]
[320043280,1711111846559,-500.0,0.00027945,2]
[320043281,1711111846568,-500.0,0.00027945,2]
[320043282,1711111846577,-229.65115844,0.00027945,2]
[320043283,1711111846588,-504.40342207,0.00027945,2]
[320043284,1711111846597,-541.17583444,0.00027945,2]
[320043285,1711111846606,-500.0,0.00027945,2]
[320043286,1711111846615,-1018.12,0.00027945,2]
[320043287,1711111846623,-500.0,0.00027945,2]
[320043288,1711111846632,-500.0,0.00027945,2]
[320043289,1711111846641,-540.48,0.00027945,2]
[320043290,1711111846650,-532.00854699,0.00027945,2]
[320043291,1711111846660,-501.1192887,0.00027945,2]
[320043292,1711111846668,-500.0,0.00027945,2]
[320043293,1711111846678,-500.0,0.00027945,2]
[320043294,1711111846686,-767.28,0.00027945,2]
[320043295,1711111846695,-500.0,0.00027945,2]
[320043296,1711111846704,-603.587,0.00027945,2]
[320043297,1711111846713,-500.0,0.00027945,2]
[320043298,1711111846722,-500.0,0.00027945,2]
[320043299,1711111846731,-500.0,0.00027945,2]
[320043300,1711111846741,-500.0,0.00027945,2]
[320043301,1711111846750,-500.0,0.00027945,2]
[320043302,1711111846759,-500.0,0.00027945,2]
[320043303,1711111846768,-500.0,0.00027945,2]
[320043304,1711111846778,-500.0,0.00027945,2]
[320043305,1711111846788,-500.0,0.00027945,2]
[320043306,1711111846798,-502.84990671,0.00027945,2]
[320043307,1711111846807,-500.0,0.00027945,2]
[320043308,1711111846816,-500.0,0.00027945,2]
[320043309,1711111846825,-500.0,0.00027945,2]
[320043310,1711111846834,-500.0,0.00027945,2]
[320043311,1711111846843,-500.0,0.00027945,2]
[320043312,1711111846852,-500.0,0.00027945,2]
[320043313,1711111846861,-500.0,0.00027945,2]
[320043314,1711111846870,-500.0,0.00027945,2]
[320043315,1711111846880,-500.0,0.00027945,2]
[320043316,1711111846889,-500.0,0.00027945,2]
[320043317,1711111846899,-500.0,0.00027945,2]
[320043318,1711111846909,-500.0,0.00027945,2]
[320043319,1711111846917,-500.0,0.00027945,2]
[320043320,1711111846926,-500.0,0.00027945,2]
[320043321,1711111846935,-500.0,0.00027945,2]
[320043322,1711111846944,-500.0,0.00027945,2]
[320043323,1711111846953,-500.0,0.00027945,2]
[320043324,1711111846962,-260.77385025,0.00027945,2]
[320043325,1711111846971,-745.25,0.00027945,2]
[320043326,1711111846980,-501.69808169,0.00027945,2]
[320043327,1711111846990,-500.0,0.00027945,2]
[320043328,1711111846999,-500.0,0.00027945,2]
[320043329,1711111847008,-500.0,0.00027945,2]
[320043330,1711111847018,-500.0,0.00027945,2]
[320043331,1711111847027,-1050.15,0.00027945,2]
[320043332,1711111847036,-500.0,0.00027945,2]
[320043333,1711111847045,-500.0,0.00027945,30]
[320043334,1711111847055,-500.0,0.00027945,2]
[320043335,1711111847064,-597.13404604,0.00027945,2]
[320043336,1711111847074,-822.63,0.00027945,2]
[320043337,1711111847083,-500.61836398,0.00027945,2]
[320043338,1711111847092,-521.77,0.00027945,2]
[320043339,1711111847102,-500.0,0.00027945,2]
[320043340,1711111847111,-500.0,0.00027945,2]
[320043341,1711111847121,-359.88371804,0.00027945,2]
[320043342,1711111847131,-429.70613393,0.00027945,2]
[320043343,1711111847140,-500.0,0.00027945,2]
[320043344,1711111847150,-500.0,0.00027945,2]
[320043345,1711111847246,-500.0,0.00027945,2]
[320043346,1711111847255,-500.0,0.00027945,2]
[320043347,1711111847264,-500.0,0.00027945,2]
[320043348,1711111847273,-151.0,0.00027945,2]
[320043349,1711111847282,-500.0,0.00027945,2]
[320043350,1711111847290,-500.0,0.00027945,2]
[320043351,1711111847299,-466.58328449,0.00027945,2]
[320043352,1711111847309,-500.0,0.00027945,2]
[320043353,1711111847319,-500.0,0.00027945,2]
[320043354,1711111847328,-822.04,0.00027945,2]
[320043355,1711111847337,-500.0,0.00027945,2]
[320043356,1711111847346,-500.0,0.00027945,2]
[320043357,1711111847356,-765.25,0.00027945,2]
[320043358,1711111847365,-500.0,0.00027945,2]
[320043359,1711111847374,-522.7,0.00027945,2]
[320043360,1711111847383,-500.0,0.00027945,2]
[320043361,1711111847392,-500.0,0.00027945,2]
[320043362,1711111847401,-500.0,0.00027945,2]
[320043363,1711111847410,-500.0,0.00027945,2]
[320043364,1711111847419,-500.0,0.00027945,2]
[320043365,1711111847429,-500.0,0.00027945,2]
[320043366,1711111847438,-500.0,0.00027945,2]
[320043367,1711111847446,-2819.12,0.00027945,2]
[320043368,1711111847456,-500.0,0.00027945,2]
[320043369,1711111847465,-500.0,0.00027945,2]
[320043370,1711111847474,-551.95,0.00027945,2]
[320043371,1711111847483,-1059.31,0.00027945,2]
[320043372,1711111847493,-251.65899777,0.00027945,2]
[320043373,1711111847502,-1138.93,0.00027945,2]
[320043374,1711111847513,-500.0,0.00027945,2]
[320043375,1711111847522,-500.0,0.00027945,2]
[320043376,1711111847531,-500.0,0.00027945,2]
[320043377,1711111847540,-500.0,0.00027945,2]
[320043378,1711111847550,-500.0,0.00027945,2]
[320043379,1711111847560,-500.0,0.00027945,2]
[320043380,1711111847569,-1081.36,0.00027945,2]
[320043381,1711111847578,-500.0,0.00027945,2]
[320043382,1711111847588,-500.0,0.00027945,2]
[320043383,1711111847597,-1909.77,0.00027945,2]
[320043384,1711111847606,-500.0,0.00027945,2]
[320043385,1711111847615,-500.0,0.00027945,2]
[320043386,1711111847624,-3328.14,0.00027945,2]
[320043387,1711111847634,-500.0,0.00027945,2]
[320043388,1711111847643,-500.0,0.00027945,2]
[320043389,1711111847652,-412.34157042,0.00027945,2]
[320043390,1711111847661,-500.0,0.00027945,2]
[320043391,1711111847670,-500.0,0.00027945,2]
[320043392,1711111847680,-1933.42,0.00027945,2]
[320043393,1711111847689,-500.0,0.00027945,2]
[320043394,1711111847698,-697.43,0.00027945,2]
[320043395,1711111847708,-500.0,0.00027945,2]
[320043396,1711111847717,-2814.01,0.00027945,2]
[320043397,1711111847727,-609.02,0.00027945,2]
[320043398,1711111847736,-603.25152225,0.00027945,2]
[320043399,1711111847745,-701.09,0.00027945,2]
[320043400,1711111847754,-500.0,0.00027945,2]
[320043401,1711111847763,-500.0,0.00027945,2]
[320043402,1711111847772,-2894.22,0.00027945,2]